fUST/lending_fUST_20250524
["ID","MTS","AMOUNT","RATE_DAILY","PERIOD"]
[362176471,1748059835231,-400.0,0.00021917,3]
[362176472,1748059835241,-430.0,0.00021917,3]
[362176473,1748059835250,-430.0,0.00021917,3]
[362176474,1748059835260,-470.0,0.00021917,3]
[362176475,1748059835269,-430.0,0.00021917,3]
[362176476,1748059835279,-415.6361791,0.00021917,3]
[362176477,1748059835288,-430.0,0.00021917,3]
[362176478,1748059835298,-453.47222805,0.00021917,3]
[362176479,1748059835307,-430.0,0.00021917,3]
[362176480,1748059835317,-311.13,0.00021917,3]
[362176481,1748059835327,-430.0,0.00021917,3]
[362176482,1748059835336,-430.0,0.00021917,3]
[362176483,1748059835346,-430.0,0.00021917,3]
[362176484,1748059835356,-506.70559341,0.00021917,3]
[362176485,1748059835367,-430.0,0.00021917,3]
[362176486,1748059835376,-430.0,0.00021917,3]
[362176487,1748059835385,-380.31616048,0.00021917,3]
[362176488,1748059835396,-400.0,0.00021917,3]
[362176489,1748059835406,-430.0,0.00021917,3]
[362176490,1748059835415,-430.0,0.00021917,3]
[362176491,1748059835425,-430.0,0.00021917,3]
[362176492,1748059835434,-430.0,0.00021917,3]
[362176493,1748059835444,-430.0,0.00021917,3]
[362176494,1748059835453,-430.0,0.00021917,3]
[362176495,1748059835463,-408.27688063,0.00021917,3]
[362176496,1748059835472,-430.0,0.00021917,3]
[362176497,1748059835482,-430.0,0.00021917,3]
[362176498,1748059835491,-430.0,0.00021917,3]
[362176499,1748059835500,-430.0,0.00021917,3]
[362176500,1748059835510,-430.0,0.00021917,3]
[362176501,1748059835519,-430.0,0.00021917,3]
[362176502,1748059835528,-430.0,0.00021917,3]
[362176503,1748059835538,-406.43357614,0.00021917,3]
[362176504,1748059835547,-430.0,0.00021917,3]
[362176505,1748059835556,-430.0,0.00021917,3]
[362176506,1748059835566,-430.0,0.00021917,3]
[362176507,1748059835576,-430.0,0.00021917,3]
[362176508,1748059835585,-431.99607419,0.00021917,3]
[362176509,1748059835594,-430.0,0.00021917,3]
[362176510,1748059835604,-430.0,0.00021917,3]
[362176511,1748059835613,-430.0,0.00021917,3]
[362176512,1748059835623,-430.0,0.00021917,3]
[362176513,1748059835632,-430.0,0.00021917,3]
[362176514,1748059835643,-430.0,0.00021917,2]
[362176515,1748059835652,-430.0,0.00021917,3]
[362176516,1748059835662,-430.0,0.00021917,3]
[362176517,1748059835797,-430.0,0.00021917,3]
[362176518,1748059835807,-430.0,0.00021917,3]
[362176519,1748059835816,-205.43,0.00021917,3]
[362176520,1748059835827,-430.0,0.00021917,3]
[362176521,1748059835837,-430.0,0.00021917,3]
[362176522,1748059835848,-438.65,0.00021917,3]
[362176523,1748059835860,-442.89,0.00021917,3]
[362176524,1748059835870,-1573.45,0.00021917,3]
[362176525,1748059835879,-430.0,0.00021917,3]
[362176526,1748059835888,-450.0,0.00021917,2]
[362176527,1748059835897,-430.0,0.00021917,3]
[362176528,1748059835907,-430.0,0.00021917,3]
[362176529,1748059835917,-430.0,0.00021917,3]
[362176530,1748059835935,-430.0,0.00021917,3]
[362176531,1748059835946,-430.0,0.00021917,3]
[362176532,1748059835955,-430.0,0.00021917,3]
[362176533,1748059835964,-430.0,0.00021917,3]
[362176534,1748059835974,-430.0,0.00021917,3]
[362176535,1748059835982,-430.0,0.00021917,3]
[362176536,1748059835993,-430.0,0.00021917,3]
[362176537,1748059836002,-1103.73,0.00021917,3]
[362176538,1748059836011,-430.0,0.00021917,3]
[362176539,1748059836020,-430.0,0.00021917,3]
[362176540,1748059836029,-430.0,0.00021917,3]
[362176541,1748059836038,-430.0,0.00021917,3]
[362176542,1748059836048,-462.5465889,0.00021917,3]
[362176543,1748059836061,-430.0,0.00021917,3]
[362176544,1748059836070,-430.0,0.00021917,3]
[362176545,1748059836080,-430.0,0.00021917,3]
[362176546,1748059836091,-430.0,0.00021917,3]
[362176547,1748059836103,-807.32,0.00021917,3]
[362176548,1748059836112,-430.0,0.00021917,3]
[362176549,1748059836124,-430.0,0.00021917,3]
[362176550,1748059836140,-2622.87,0.00021917,3]
[362176551,1748059836150,-875.19,0.00021917,3]
[362176552,1748059836161,-376.97075569,0.00021917,3]
[362176553,1748059836172,-1507.01,0.00021917,3]
[362176554,1748059836183,-430.0,0.00021917,3]
[362176555,1748059836193,-158.06429564,0.00021917,3]
[362176556,1748059836205,-345.61744052,0.00021917,3]
[362176557,1748059836214,-430.0,0.00021917,3]
[362176558,1748059836225,-430.0,0.00021917,3]
[362176559,1748059836234,-430.0,0.00021917,3]
[362176560,1748059836243,-595.47,0.00021917,3]
[362176561,1748059836254,-894.64583333,0.00021917,3]
[362176562,1748059836263,-430.0,0.00021917,3]
[362176563,1748059836272,-430.0,0.00021917,3]
[362176564,1748059836282,-430.0,0.00021917,3]
[362176565,1748059836291,-444.55157478,0.00021917,3]
[362176566,1748059836300,-211.35,0.00021917,3]
[362176567,1748059836310,-430.0,0.00021917,3]
[362176568,1748059836321,-430.0,0.00021917,3]
[362176569,1748059836332,-430.0,0.00021917,3]
[362176570,1748059836343,-430.0,0.00021917,3]
[362176571,1748059836353,-430.0,0.00021917,3]
[362176572,1748059836363,-430.0,0.00021917,3]
[362176573,1748059836372,-430.0,0.00021917,3]
[362176574,1748059836382,-430.0,0.00021917,3]
[362176575,1748059836392,-430.0,0.00021917,3]
[362176576,1748059836402,-430.0,0.00021917,3]
[362176577,1748059836412,-430.0,0.00021917,3]
[362176578,1748059836422,-430.0,0.00021917,3]
[362176579,1748059836434,-430.0,0.00021917,3]
[362176580,1748059836444,-430.0,0.00021917,3]
[362176581,1748059836453,-1038.46,0.00021917,3]
[362176582,1748059836463,-374.96278666,0.00021917,3]
[362176583,1748059836472,-430.0,0.00021917,3]
[362176584,1748059836481,-516.13,0.00021917,3]
[362176585,1748059836490,-430.0,0.00021917,3]
[362176586,1748059836499,-415.52409456,0.00021917,3]
[362176587,1748059836508,-430.0,0.00021917,3]
[362176588,1748059836518,-430.0,0.00021917,3]
[362176589,1748059836527,-1112.26,0.00021917,3]
[362176590,1748059836536,-400.0,0.00021917,3]
[362176591,1748059836545,-430.0,0.00021917,3]
[362176592,1748059836555,-430.0,0.00021917,3]
[362176593,1748059836564,-400.0,0.00021917,3]
[362176594,1748059836573,-784.98,0.00021917,3]
[362176595,1748059836582,-384.2046547,0.00021917,3]
[362176596,1748059836591,-160.0,0.00022109,2]
[362176597,1748059836600,-212.51988043,0.0002211,2]
[362176598,1748059836609,-160.0,0.0002211,2]
[362176599,1748059836619,-208.01601605,0.00022114,6]
[362176600,1748059836628,-430.0,0.00022191,3]
[362176601,1748059836637,-431.40691516,0.00022191,3]
[362176602,1748059836646,-175.62,0.00022191,3]
[362176603,1748059836656,-430.0,0.00022191,3]
[362176604,1748059836665,-430.0,0.00022191,3]
[362176605,1748059836674,-430.0,0.00022191,3]
[362176606,1748059836684,-453.73923172,0.00022191,3]
[362176607,1748059836693,-204.26,0.00022191,3]
[362176608,1748059836703,-298.48,0.00022191,3]
[362176609,1748059836713,-399.64,0.00022191,3]
[362176610,1748059836722,-430.0,0.00022191,3]
[362176611,1748059836732,-430.0,0.00022191,3]
[362176612,1748059836742,-430.0,0.00022191,3]
[362176613,1748059836752,-430.0,0.00022191,3]
[362176614,1748059836762,-150.32,0.00022191,3]
[362176615,1748059836772,-430.0,0.00022191,3]
[362176616,1748059836781,-430.0,0.00022191,3]
[362176617,1748059836793,-430.0,0.00022191,3]
[362176618,1748059836803,-430.0,0.00022191,3]
[362176619,1748059836812,-430.0,0.00022191,3]
[362176620,1748059836822,-430.0,0.00022191,3]
[362176621,1748059836831,-430.0,0.00022191,3]
[362176622,1748059836842,-430.0,0.00022191,3]
[362176623,1748059836852,-430.0,0.00022191,3]
[362176624,1748059836861,-430.0,0.00022191,3]
[362176625,1748059836871,-430.0,0.00022191,3]
[362176626,1748059836880,-430.0,0.00022191,3]
[362176627,1748059836889,-430.0,0.00022191,3]
[362176628,1748059836899,-430.0,0.00022191,3]
[362176629,1748059836908,-430.0,0.00022191,3]
[362176630,1748059836917,-468.12,0.00022191,3]
[362176631,1748059836927,-569.4,0.00022191,3]
[362176632,1748059836936,-430.0,0.00022191,3]
[362176633,1748059836945,-430.0,0.00022191,3]
[362176634,1748059836955,-336.41,0.00022191,3]
[362176635,1748059836965,-300.0,0.00022191,3]
[362176636,1748059836974,-430.0,0.00022191,3]
[362176637,1748059836983,-434.95793077,0.00022191,3]
[362176638,1748059836992,-430.0,0.00022191,3]
[362176639,1748059837003,-430.0,0.00022191,3]
[362176640,1748059837012,-326.48807226,0.00022191,3]
[362176641,1748059837024,-430.0,0.00022191,3]
[362176642,1748059837036,-430.0,0.00022191,3]
[362176643,1748059837045,-380.8158018,0.00022191,3]
[362176644,1748059837058,-430.0,0.00022191,3]
[362176645,1748059837067,-402.21184469,0.00022191,3]
[362176646,1748059837076,-430.0,0.00022191,3]
[362176647,1748059837087,-430.0,0.00022191,3]
[362176648,1748059837099,-430.0,0.00022191,3]
[362176649,1748059837110,-430.0,0.00022191,3]
[362176650,1748059837120,-430.0,0.00022191,3]
[362176651,1748059837130,-1640.96,0.00022191,3]
[362176652,1748059837140,-432.85789592,0.00022191,3]
[362176653,1748059837150,-500.0,0.00022191,3]
[362176654,1748059837162,-430.0,0.00022191,3]
[362176655,1748059837172,-516.23723226,0.00022191,3]
[362176656,1748059837181,-430.0,0.00022191,3]
[362176657,1748059837190,-430.0,0.00022191,3]
[362176658,1748059837199,-430.0,0.00022191,3]
[362176659,1748059837209,-430.0,0.00022191,3]
[362176660,1748059837221,-430.0,0.00022191,3]
[362176661,1748059837231,-265.01132169,0.00022191,3]
[362176662,1748059837240,-430.0,0.00022191,3]
[362176663,1748059837251,-612.28,0.00022191,3]
[362176664,1748059837260,-430.0,0.00022191,3]
[362176665,1748059837270,-430.0,0.00022191,3]
[362176666,1748059837279,-403.94,0.00022191,3]
[362176667,1748059837289,-430.0,0.00022191,3]
[362176668,1748059837299,-430.0,0.00022191,3]
[362176669,1748059837308,-314.26926806,0.00022191,3]
[362176670,1748059837318,-430.0,0.00022191,3]
[362176671,1748059837327,-430.0,0.00022191,3]
[362176672,1748059837337,-201.42,0.00022191,3]
[362176673,1748059837346,-430.0,0.00022191,3]
[362176674,1748059837356,-363.22,0.00022191,3]
[362176675,1748059837365,-430.0,0.00022191,3]
[362176676,1748059837374,-430.0,0.00022191,3]
[362176677,1748059837383,-430.0,0.00022191,3]
[362176678,1748059837393,-430.0,0.00022191,3]
[362176679,1748059837402,-430.0,0.00022191,3]
[362176680,1748059837411,-430.0,0.00022191,3]
[362176681,1748059837420,-430.0,0.00022191,3]
[362176682,1748059837429,-430.0,0.00022191,3]
[362176683,1748059837438,-430.0,0.00022191,3]
[362176684,1748059837447,-481.14,0.00022191,3]
[362176685,1748059837457,-430.0,0.00022191,3]
[362176686,1748059837466,-430.0,0.00022191,3]
[362176687,1748059837475,-430.0,0.00022191,3]
[362176688,1748059837485,-451.50454324,0.00022191,3]
[362176689,1748059837494,-430.0,0.00022191,3]
[362176690,1748059837503,-447.76,0.00022191,3]
[362176691,1748059837513,-408.25798044,0.00022191,3]
[362176692,1748059837522,-430.0,0.00022191,3]
[362176693,1748059837531,-430.0,0.00022191,3]
[362176694,1748059837542,-430.0,0.00022191,3]
[362176695,1748059837552,-430.0,0.00022191,3]
[362176696,1748059837561,-430.0,0.00022191,3]
[362176697,1748059837570,-430.0,0.00022191,3]
[362176698,1748059837579,-371.44406114,0.00022191,3]
[362176700,1748059837589,-430.0,0.00022191,3]
[362176701,1748059837598,-430.0,0.00022191,2]
[362176702,1748059837607,-430.0,0.00022191,3]
[362176703,1748059837616,-430.0,0.00022191,3]
[362176704,1748059837626,-430.0,0.00022191,3]
[362176705,1748059837635,-430.0,0.00022191,3]
[362176706,1748059837645,-438.65,0.00022191,3]
[362176707,1748059837654,-442.89,0.00022191,3]
[362176708,1748059837663,-1573.45,0.00022191,3]
[362176709,1748059837673,-430.0,0.00022191,3]
[362176710,1748059837682,-260.5,0.00022191,3]
[362176711,1748059837691,-430.0,0.00022191,3]
[362176713,1748059837701,-462.80588903,0.00022191,3]
[362176714,1748059837710,-430.0,0.00022191,3]
[362176715,1748059837720,-430.0,0.00022191,3]
[362176716,1748059837729,-430.0,0.00022191,3]
[362176717,1748059837738,-1103.73,0.00022191,3]
[362176718,1748059837748,-430.0,0.00022191,3]
[362176719,1748059837757,-430.0,0.00022191,3]
[362176720,1748059837767,-430.0,0.00022191,3]
[362176721,1748059837776,-532.46,0.00022191,3]
[362176722,1748059837785,-430.0,0.00022191,3]
[362176723,1748059837795,-807.32,0.00022191,3]
[362176724,1748059837805,-340.92,0.00022191,3]
[362176725,1748059837815,-430.0,0.00022191,3]
[362176727,1748059837824,-2622.87,0.00022191,3]
[362176728,1748059837834,-875.19,0.00022191,3]
[362176731,1748059837843,-1507.01,0.00022191,3]
[362176732,1748059837853,-199.98,0.00022191,3]
[362176733,1748059837862,-430.0,0.00022191,3]
[362176734,1748059837872,-430.0,0.00022191,3]
[362176736,1748059837881,-430.0,0.00022191,3]
[362176738,1748059837890,-595.47,0.00022191,3]
[362176740,1748059837899,-438.48,0.00022191,3]
[362176742,1748059837909,-430.0,0.00022191,3]
[362176743,1748059837918,-430.0,0.00022191,3]
[362176744,1748059837928,-465.24,0.00022191,3]
[362176746,1748059837937,-430.0,0.00022191,3]
[362176747,1748059837947,-430.0,0.00022191,3]
[362176748,1748059837957,-298.96,0.00022191,3]
[362176749,1748059837967,-430.0,0.00022191,3]
[362176750,1748059837976,-430.0,0.00022191,3]
[362176752,1748059837986,-430.0,0.00022191,3]
[362176753,1748059837995,-430.0,0.00022191,3]
[362176755,1748059838005,-430.0,0.00022191,3]
[362176757,1748059838015,-430.0,0.00022191,3]
[362176759,1748059838025,-430.0,0.00022191,3]
[362176761,1748059838034,-430.0,0.00022191,3]
[362176763,1748059838044,-1038.46,0.00022191,3]
[362176765,1748059838056,-430.0,0.00022191,3]
[362176767,1748059838066,-430.0,0.00022191,3]
[362176769,1748059838075,-430.0,0.00022191,3]
[362176771,1748059838085,-430.0,0.00022191,3]
[362176774,1748059838096,-1112.26,0.00022191,3]
[362176788,1748059838225,-430.0,0.00022191,3]
[362176790,1748059838235,-784.98,0.00022191,3]
[362176792,1748059838246,-501.2150975,0.00022247,2]
[362176794,1748059838256,-505.08011426,0.00022304,2]
[362176796,1748059838266,-505.55213309,0.0002231,2]
[362176797,1748059838276,-208.01601605,0.00022329,7]
[362176798,1748059838285,-501.88712625,0.00022377,2]
[362176799,1748059838294,-503.21855754,0.00022377,2]
[362176800,1748059838303,-507.43070087,0.00022413,2]
[362176801,1748059838312,-430.0,0.00022465,3]
[362176802,1748059838322,-430.0,0.00022465,3]
[362176803,1748059838331,-430.0,0.00022465,3]
[362176804,1748059838341,-264.46,0.00022465,3]
[362176805,1748059838353,-430.0,0.00022465,3]
[362176806,1748059838363,-495.54,0.00022465,3]
[362176807,1748059838373,-430.0,0.00022465,3]
[362176808,1748059838383,-376.32,0.00022465,3]
[362176809,1748059838393,-430.0,0.00022465,3]
[362176810,1748059838403,-212.52,0.00022465,3]
[362176811,1748059838415,-222.64,0.00022465,3]
[362176812,1748059838424,-158.58,0.00022465,3]
[362176813,1748059838434,-430.0,0.00022465,3]
[362176814,1748059838443,-273.42,0.00022465,3]
[362176815,1748059838451,-304.91553664,0.00022465,3]
[362176816,1748059838461,-553.44,0.00022465,3]
[362176817,1748059838471,-461.47155028,0.00022465,3]
[362176818,1748059838480,-563.7,0.00022465,3]
[362176820,1748059838490,-430.0,0.00022465,3]
[362176821,1748059838499,-1640.96,0.00022465,3]
[362176822,1748059838509,-500.0,0.00022465,3]
[362176824,1748059838519,-430.0,0.00022465,3]
[362176826,1748059838528,-430.0,0.00022465,3]
[362176828,1748059838538,-430.0,0.00022465,3]
[362176830,1748059838548,-156.03,0.00022465,3]
[362176833,1748059838558,-430.0,0.00022465,3]
[362176834,1748059838567,-612.28,0.00022465,3]
[362176836,1748059838577,-430.0,0.00022465,3]
[362176839,1748059838587,-430.0,0.00022465,3]
[362176841,1748059838596,-430.0,0.00022465,3]
[362176843,1748059838606,-353.62,0.00022465,3]
[362176844,1748059838615,-430.0,0.00022465,3]
[362176846,1748059838625,-430.0,0.00022465,3]
[362176848,1748059838643,-430.0,0.00022465,3]
[362176850,1748059838653,-430.0,0.00022465,3]
[362176851,1748059838663,-430.0,0.00022465,3]
[362176852,1748059838674,-430.0,0.00022465,3]
[362176853,1748059838683,-363.92,0.00022465,3]
[362176854,1748059838693,-430.0,0.00022465,3]
[362176855,1748059838705,-430.0,0.00022465,3]
[362176856,1748059838715,-520.34,0.00022465,3]
[362176857,1748059838725,-427.92,0.00022465,3]
[362176858,1748059838735,-171.7,0.00022465,3]
[362176859,1748059838745,-430.0,0.00022465,3]
[362176860,1748059838755,-430.0,0.00022465,3]
[362176861,1748059838764,-430.0,0.00022465,3]
[362176862,1748059838774,-430.0,0.00022465,3]
[362176863,1748059838785,-430.0,0.00022465,3]
[362176864,1748059838795,-475.58,0.00022465,3]
[362176865,1748059838805,-430.0,0.00022465,2]
[362176866,1748059838815,-430.0,0.00022465,3]
[362176867,1748059838825,-430.0,0.00022465,3]
[362176868,1748059838835,-430.0,0.00022465,3]
[362176869,1748059838845,-438.65,0.00022465,3]
[362176870,1748059838854,-442.89,0.00022465,3]
[362176871,1748059838864,-1573.45,0.00022465,3]
[362176872,1748059838874,-430.0,0.00022465,3]
[362176873,1748059838884,-430.0,0.00022465,3]
[362176874,1748059838893,-430.0,0.00022465,3]
[362176875,1748059838903,-430.0,0.00022465,3]
[362176876,1748059838913,-1103.73,0.00022465,3]
[362176877,1748059838922,-430.0,0.00022465,3]
[362176878,1748059838932,-159.72,0.00022465,3]
[362176879,1748059838942,-430.0,0.00022465,3]
[362176880,1748059838952,-807.32,0.00022465,3]
[362176881,1748059838962,-430.0,0.00022465,3]
[362176882,1748059838971,-2622.87,0.00022465,3]
[362176883,1748059838981,-875.19,0.00022465,3]
[362176884,1748059838990,-1507.01,0.00022465,3]
[362176885,1748059839000,-430.0,0.00022465,3]
[362176886,1748059839011,-430.0,0.00022465,3]
[362176887,1748059839020,-595.47,0.00022465,3]
[362176888,1748059839030,-430.0,0.00022465,3]
[362176889,1748059839039,-430.0,0.00022465,3]
[362176890,1748059839049,-430.0,0.00022465,3]
[362176891,1748059839062,-430.0,0.00022465,3]
[362176892,1748059839075,-430.0,0.00022465,3]
[362176893,1748059839086,-430.0,0.00022465,3]
[362176894,1748059839095,-430.0,0.00022465,3]
[362176895,1748059839105,-430.0,0.00022465,3]
[362176896,1748059839114,-512.85648473,0.00022465,3]
[362176897,1748059839123,-1038.46,0.00022465,3]
[362176898,1748059839132,-430.0,0.00022465,3]
[362176899,1748059839143,-430.0,0.00022465,3]
[362176900,1748059839153,-332.88,0.00022465,3]
[362176901,1748059839162,-1112.26,0.00022465,3]
[362176902,1748059839172,-222.28,0.00022465,3]
[362176903,1748059839182,-784.98,0.00022465,3]
[362176904,1748059839192,-208.01601605,0.00022543,7]
[362176905,1748059839201,-158.2393474,0.00022548,2]
[362176906,1748059839211,-995.25991313,0.00022564,2]
[362176907,1748059839221,-404.0,0.00022651,2]
[362176908,1748059839231,-500.0,0.00022676,2]
[362176909,1748059839240,-500.0,0.00022738,2]
[362176910,1748059839250,-500.0,0.00022738,2]
[362176911,1748059839260,-500.0,0.00022738,2]
[362176912,1748059839269,-500.0,0.00022738,2]
[362176913,1748059839279,-564.54996236,0.00022738,2]
[362176914,1748059839289,-333.75646616,0.00022738,2]
[362176915,1748059839298,-382.91059623,0.00022738,2]
[362176916,1748059839307,-500.0,0.00022738,2]
[362176917,1748059839316,-500.0,0.00022738,2]
[362176918,1748059839325,-500.0,0.00022738,2]
[362176919,1748059839334,-500.0,0.00022738,2]
[362176920,1748059839345,-500.0,0.00022738,2]
[362176921,1748059839354,-500.0,0.00022738,2]
[362176922,1748059839363,-210.12472453,0.00022738,2]
[362176923,1748059839373,-430.0,0.00022739,3]
[362176924,1748059839383,-430.0,0.00022739,3]
[362176925,1748059839393,-560.39,0.00022739,3]
[362176926,1748059839403,-430.0,0.00022739,3]
[362176927,1748059839412,-213.68,0.00022739,3]
[362176928,1748059839422,-430.0,0.00022739,3]
[362176929,1748059839431,-430.0,0.00022739,3]
[362176930,1748059839440,-430.0,0.00022739,3]
[362176931,1748059839449,-1640.96,0.00022739,3]
[362176932,1748059839459,-500.0,0.00022739,3]
[362176933,1748059839469,-430.0,0.00022739,3]
[362176934,1748059839480,-430.0,0.00022739,3]
[362176935,1748059839489,-430.0,0.00022739,3]
[362176936,1748059839499,-208.73,0.00022739,3]
[362176937,1748059839508,-612.28,0.00022739,3]
[362176938,1748059839518,-430.0,0.00022739,3]
[362176939,1748059839527,-430.0,0.00022739,3]
[362176940,1748059839536,-430.0,0.00022739,3]
[362176941,1748059839546,-430.0,0.00022739,3]
[362176943,1748059839556,-430.0,0.00022739,3]
[362176944,1748059839567,-430.0,0.00022739,3]
[362176945,1748059839578,-430.0,0.00022739,3]
[362176946,1748059839588,-430.0,0.00022739,3]
[362176947,1748059839598,-430.0,0.00022739,3]
[362176948,1748059839607,-430.0,0.00022739,3]
[362176950,1748059839618,-430.0,0.00022739,3]
[362176952,1748059839627,-430.0,0.00022739,3]
[362176954,1748059839638,-430.0,0.00022739,3]
[362176956,1748059839647,-430.0,0.00022739,3]
[362176957,1748059839659,-430.0,0.00022739,3]
[362176958,1748059839669,-430.0,0.00022739,2]
[362176959,1748059839678,-430.0,0.00022739,3]
[362176960,1748059839688,-430.0,0.00022739,3]
[362176961,1748059839698,-430.0,0.00022739,3]
[362176962,1748059839708,-438.65,0.00022739,3]
[362176963,1748059839718,-442.89,0.00022739,3]
[362176964,1748059839727,-1573.45,0.00022739,3]
[362176965,1748059839739,-430.0,0.00022739,3]
[362176966,1748059839750,-349.49,0.00022739,3]
[362176967,1748059839760,-430.0,0.00022739,3]
[362176968,1748059839770,-430.0,0.00022739,3]
[362176969,1748059839779,-1103.73,0.00022739,3]
[362176970,1748059839789,-430.0,0.00022739,3]
[362176971,1748059839798,-414.58,0.00022739,3]
[362176972,1748059839808,-807.32,0.00022739,3]
[362176973,1748059839817,-430.0,0.00022739,3]
[362176974,1748059839827,-2622.87,0.00022739,3]
[362176977,1748059839836,-875.19,0.00022739,3]
[362176979,1748059839846,-1507.01,0.00022739,3]
[362176981,1748059839855,-430.0,0.00022739,3]
[362176983,1748059839864,-430.0,0.00022739,3]
[362176985,1748059839874,-595.47,0.00022739,3]
[362176987,1748059839883,-430.0,0.00022739,3]
[362176989,1748059839892,-430.0,0.00022739,3]
[362176991,1748059839902,-430.0,0.00022739,3]
[362176993,1748059839911,-430.0,0.00022739,3]
[362176995,1748059839921,-480.71021645,0.00022739,3]
[362176997,1748059839930,-430.0,0.00022739,3]
[362176999,1748059839940,-430.0,0.00022739,3]
[362177001,1748059839949,-430.0,0.00022739,3]
[362177003,1748059839959,-1038.46,0.00022739,3]
[362177005,1748059839968,-430.0,0.00022739,3]
[362177007,1748059839977,-430.0,0.00022739,3]
[362177009,1748059839986,-1112.26,0.00022739,3]
[362177011,1748059839995,-784.98,0.00022739,3]
[362177013,1748059840005,-208.01601605,0.00022757,7]
[362177015,1748059840014,-208.01601605,0.00022971,8]
[362177017,1748059840023,-160.0,0.00023,3]
[362177020,1748059840033,-527.78952841,0.00023013,3]
[362177023,1748059840043,-430.0,0.00023013,3]
[362177026,1748059840053,-563.96,0.00023013,3]
[362177028,1748059840064,-430.0,0.00023013,3]
[362177031,1748059840074,-430.0,0.00023013,3]
[362177034,1748059840083,-500.35979412,0.00023013,3]
[362177036,1748059840092,-1640.96,0.00023013,3]
[362177038,1748059840101,-500.0,0.00023013,3]
[362177040,1748059840111,-430.0,0.00023013,3]
[362177042,1748059840120,-430.0,0.00023013,3]
[362177043,1748059840129,-430.0,0.00023013,3]
[362177046,1748059840139,-612.28,0.00023013,3]
[362177048,1748059840149,-430.0,0.00023013,3]
[362177050,1748059840158,-430.0,0.00023013,3]
[362177052,1748059840168,-430.0,0.00023013,3]
[362177054,1748059840178,-430.0,0.00023013,3]
[362177056,1748059840187,-435.5,0.00023013,3]
[362177059,1748059840196,-430.0,0.00023013,3]
[362177062,1748059840205,-430.0,0.00023013,3]
[362177064,1748059840214,-430.0,0.00023013,3]
[362177066,1748059840223,-430.0,0.00023013,3]
[362177068,1748059840233,-430.0,0.00023013,3]
[362177070,1748059840242,-430.0,0.00023013,3]
[362177073,1748059840252,-430.0,0.00023013,3]
[362177076,1748059840262,-430.0,0.00023013,3]
[362177079,1748059840271,-430.0,0.00023013,3]
[362177081,1748059840280,-430.0,0.00023013,3]
[362177082,1748059840290,-430.0,0.00023013,2]
[362177084,1748059840299,-430.0,0.00023013,3]
[362177087,1748059840309,-547.78,0.00023013,3]
[362177089,1748059840318,-430.0,0.00023013,3]
[362177091,1748059840327,-438.65,0.00023013,3]
[362177094,1748059840338,-442.89,0.00023013,3]
[362177110,1748059840466,-1573.45,0.00023013,3]